fUST/lending_fUST_20250912
["ID","MTS","AMOUNT","RATE_DAILY","PERIOD"]
[385161881,1757676648191,-480.0,0.00014246,2]
[385161883,1757676648200,-480.0,0.00014246,2]
[385161885,1757676648210,-480.0,0.00014246,2]
[385161887,1757676648221,-480.0,0.00014246,2]
[385161889,1757676648230,-480.0,0.00014246,2]
[385161892,1757676648244,-539.45,0.00014246,2]
[385161893,1757676648254,-480.0,0.00014246,2]
[385161894,1757676648263,-512.57,0.00014246,2]
[385161895,1757676648272,-480.0,0.00014246,2]
[385161896,1757676648281,-534.79,0.00014246,2]
[385161897,1757676648290,-480.0,0.00014246,2]
[385161898,1757676648299,-559.81,0.00014246,2]
[385161899,1757676648308,-480.0,0.00014246,2]
[385161900,1757676648318,-480.0,0.00014246,2]
[385161901,1757676648327,-480.0,0.00014246,2]
[385161902,1757676648336,-480.0,0.00014246,2]
[385161903,1757676648346,-480.0,0.00014246,2]
[385161904,1757676648355,-480.0,0.00014246,2]
[385161905,1757676648365,-541.42469247,0.00014246,2]
[385161906,1757676648374,-480.0,0.00014246,2]
[385161907,1757676648384,-480.0,0.00014246,2]
[385161908,1757676648393,-1064.3,0.00014246,2]
[385161909,1757676648404,-480.0,0.00014246,2]
[385161910,1757676648414,-480.0,0.00014246,2]
[385161911,1757676648425,-480.0,0.00014246,2]
[385161912,1757676648434,-515.74,0.00014246,2]
[385161913,1757676648443,-480.0,0.00014246,2]
[385161914,1757676648454,-480.0,0.00014246,2]
[385161915,1757676648464,-480.0,0.00014246,2]
[385161916,1757676648473,-480.0,0.00014246,2]
[385161917,1757676648483,-480.0,0.00014246,2]
[385161918,1757676648492,-480.0,0.00014246,2]
[385161919,1757676648501,-323.0,0.00014246,2]
[385161920,1757676648510,-497.01020828,0.00014246,2]
[385161921,1757676648520,-174.53,0.00014246,2]
[385161922,1757676648530,-480.0,0.00014246,2]
[385161923,1757676648540,-480.0,0.00014246,2]
[385161924,1757676648549,-480.0,0.00014246,2]
[385161925,1757676648558,-480.0,0.00014246,2]
[385161926,1757676648568,-488.5618906,0.00014246,2]
[385161927,1757676648577,-480.0,0.00014246,2]
[385161928,1757676648586,-480.0,0.00014246,2]
[385161929,1757676648596,-480.0,0.00014246,2]
[385161930,1757676648605,-480.0,0.00014246,2]
[385161931,1757676648615,-480.0,0.00014246,2]
[385161932,1757676648624,-766.43,0.00014246,2]
[385161933,1757676648633,-480.0,0.00014246,2]
[385161934,1757676648642,-480.0,0.00014246,2]
[385161935,1757676648651,-480.0,0.00014246,2]
[385161936,1757676648660,-480.0,0.00014246,2]
[385161937,1757676648669,-1801.77,0.00014246,2]
[385161938,1757676648679,-480.0,0.00014246,2]
[385161939,1757676648689,-480.0,0.00014246,2]
[385161940,1757676648698,-480.0,0.00014246,2]
[385161941,1757676648707,-480.0,0.00014246,2]
[385161942,1757676648717,-480.0,0.00014246,2]
[385161943,1757676648726,-480.0,0.00014246,2]
[385161944,1757676648736,-500.0,0.00014246,2]
[385161945,1757676648745,-480.0,0.0001452,2]
[385161947,1757676648755,-480.0,0.0001452,2]
[385161949,1757676648764,-480.0,0.0001452,2]
[385161951,1757676648773,-480.0,0.0001452,2]
[385161953,1757676648783,-213.50739287,0.0001452,2]
[385161955,1757676648792,-485.3980371,0.0001452,2]
[385161956,1757676648801,-480.0,0.0001452,2]
[385161958,1757676648810,-480.0,0.0001452,2]
[385161960,1757676648819,-192.84,0.0001452,2]
[385161962,1757676648829,-204.9106769,0.0001452,2]
[385161964,1757676648838,-480.0,0.0001452,2]
[385161966,1757676648848,-480.0,0.0001452,2]
[385161968,1757676648857,-480.0,0.0001452,2]
[385161970,1757676648866,-480.0,0.0001452,2]
[385161972,1757676648876,-480.0,0.0001452,2]
[385161974,1757676648885,-480.0,0.0001452,2]
[385161976,1757676648894,-480.0,0.0001452,2]
[385161978,1757676648904,-462.38803824,0.0001452,2]
[385161980,1757676648913,-480.0,0.0001452,2]
[385161982,1757676648922,-480.0,0.0001452,2]
[385161983,1757676648931,-480.0,0.0001452,2]
[385161985,1757676648941,-218.79641822,0.0001452,2]
[385161988,1757676648950,-480.0,0.0001452,2]
[385161990,1757676648960,-480.0,0.0001452,2]
[385161992,1757676648970,-480.0,0.0001452,2]
[385161994,1757676648979,-258.37,0.0001452,2]
[385161996,1757676648988,-480.0,0.0001452,2]
[385161998,1757676648997,-511.74790592,0.0001452,2]
[385161999,1757676649007,-480.0,0.0001452,2]
[385162001,1757676649016,-480.0,0.0001452,2]
[385162004,1757676649027,-480.0,0.0001452,2]
[385162005,1757676649036,-480.0,0.0001452,2]
[385162008,1757676649046,-480.0,0.0001452,2]
[385162009,1757676649056,-601.7623293,0.0001452,2]
[385162012,1757676649065,-480.0,0.0001452,2]
[385162014,1757676649075,-480.0,0.0001452,2]
[385162016,1757676649084,-539.45,0.0001452,2]
[385162017,1757676649094,-567.97,0.0001452,2]
[385162019,1757676649104,-512.57,0.0001452,2]
[385162022,1757676649113,-480.0,0.0001452,2]
[385162023,1757676649123,-534.79,0.0001452,2]
[385162025,1757676649133,-480.0,0.0001452,2]
[385162027,1757676649143,-559.81,0.0001452,2]
[385162029,1757676649152,-480.0,0.0001452,2]
[385162031,1757676649162,-480.0,0.0001452,2]
[385162033,1757676649171,-480.0,0.0001452,2]
[385162035,1757676649181,-480.0,0.0001452,2]
[385162037,1757676649194,-480.0,0.0001452,2]
[385162039,1757676649204,-480.0,0.0001452,2]
[385162041,1757676649213,-1064.3,0.0001452,2]
[385162043,1757676649223,-515.74,0.0001452,2]
[385162045,1757676649233,-258.85,0.0001452,2]
[385162047,1757676649242,-480.0,0.0001452,2]
[385162049,1757676649251,-480.0,0.0001452,2]
[385162051,1757676649261,-621.43574773,0.0001452,2]
[385162053,1757676649271,-480.0,0.0001452,2]
[385162055,1757676649280,-480.0,0.0001452,2]
[385162057,1757676649289,-480.0,0.0001452,2]
[385162060,1757676649298,-480.0,0.0001452,2]
[385162061,1757676649307,-480.0,0.0001452,2]
[385162063,1757676649317,-480.0,0.0001452,2]
[385162066,1757676649327,-480.0,0.0001452,2]
[385162068,1757676649337,-455.29730526,0.0001452,2]
[385162070,1757676649346,-766.43,0.0001452,2]
[385162072,1757676649355,-480.0,0.0001452,2]
[385162074,1757676649364,-480.0,0.0001452,2]
[385162076,1757676649373,-480.0,0.0001452,2]
[385162077,1757676649382,-1801.77,0.0001452,2]
[385162080,1757676649392,-480.0,0.0001452,2]
[385162082,1757676649401,-207.61520257,0.0001452,2]
[385162083,1757676649412,-500.0,0.00014521,2]
[385162086,1757676649422,-500.0,0.00014521,2]
[385162088,1757676649431,-1000.0,0.00014521,2]
[385162090,1757676649440,-500.0,0.00014521,2]
[385162092,1757676649451,-1000.0,0.00014521,2]
[385162094,1757676649460,-1001.63624353,0.00014521,2]
[385162096,1757676649469,-1000.0,0.00014521,2]
[385162098,1757676649479,-480.0,0.00014794,2]
[385162099,1757676649488,-487.53045418,0.00014794,2]
[385162101,1757676649498,-480.0,0.00014794,2]
[385162103,1757676649507,-480.0,0.00014794,2]
[385162105,1757676649517,-480.0,0.00014794,2]
[385162107,1757676649527,-480.0,0.00014794,2]
[385162109,1757676649536,-269.64443884,0.00014794,2]
[385162111,1757676649546,-209.49173325,0.00014794,2]
[385162113,1757676649555,-444.04604287,0.00014794,2]
[385162115,1757676649564,-480.0,0.00014794,2]
[385162117,1757676649573,-480.0,0.00014794,2]
[385162119,1757676649582,-480.0,0.00014794,2]
[385162121,1757676649591,-480.0,0.00014794,2]
[385162123,1757676649600,-480.0,0.00014794,2]
[385162125,1757676649609,-480.0,0.00014794,2]
[385162127,1757676649619,-480.0,0.00014794,2]
[385162129,1757676649627,-480.0,0.00014794,2]
[385162131,1757676649638,-539.45,0.00014794,2]
[385162133,1757676649646,-512.57,0.00014794,2]
[385162135,1757676649655,-155.61138132,0.00014794,2]
[385162137,1757676649664,-534.79,0.00014794,2]
[385162139,1757676649674,-265.69585767,0.00014794,2]
[385162141,1757676649685,-559.81,0.00014794,2]
[385162143,1757676649695,-480.0,0.00014794,2]
[385162145,1757676649703,-480.0,0.00014794,2]
[385162147,1757676649713,-480.0,0.00014794,2]
[385162149,1757676649722,-314.2058312,0.00014794,2]
[385162151,1757676649731,-1064.3,0.00014794,2]
[385162153,1757676649740,-515.74,0.00014794,2]
[385162154,1757676649750,-480.0,0.00014794,2]
[385162156,1757676649759,-270.05,0.00014794,2]
[385162158,1757676649768,-480.0,0.00014794,2]
[385162160,1757676649778,-480.0,0.00014794,2]
[385162162,1757676649787,-480.0,0.00014794,2]
[385162164,1757676649797,-480.0,0.00014794,2]
[385162166,1757676649806,-480.0,0.00014794,2]
[385162168,1757676649816,-480.0,0.00014794,2]
[385162171,1757676649825,-480.0,0.00014794,2]
[385162173,1757676649835,-766.43,0.00014794,2]
[385162174,1757676649844,-480.0,0.00014794,2]
[385162176,1757676649853,-480.0,0.00014794,2]
[385162177,1757676649863,-480.0,0.00014794,2]
[385162178,1757676649872,-1801.77,0.00014794,2]
[385162179,1757676649881,-480.0,0.00014794,2]
[385162180,1757676649891,-500.0,0.00014816,2]
[385162181,1757676649900,-6267.17590668,0.00014853,2]
[385162182,1757676649910,-10585.41552735,0.00014891,2]
[385162183,1757676649919,-417.15472785,0.00014938,2]
[385162184,1757676649928,-160.0,0.00014938,2]
[385162185,1757676649937,-160.0,0.00014938,2]
[385162186,1757676649946,-160.0,0.00014938,2]
[385162187,1757676649956,-233.13074058,0.00014939,2]
[385162188,1757676649966,-160.0,0.00014939,2]
[385162189,1757676649975,-160.0,0.00014939,2]
[385162190,1757676649983,-217.7145751,0.00014939,2]
[385162191,1757676649993,-160.0,0.00014939,2]
[385162192,1757676650002,-847.0429734,0.00014939,2]
[385162193,1757676650012,-531.04384426,0.00014939,2]
[385162194,1757676650021,-160.0,0.00014939,2]
[385162195,1757676650030,-160.0,0.00014939,2]
[385162196,1757676650040,-500.0,0.00014988,2]
[385162197,1757676650049,-500.0,0.00014988,2]
[385162198,1757676650058,-500.57534738,0.00014988,2]
[385162199,1757676650068,-160.0,0.00015,2]
[385162200,1757676650077,-480.0,0.00015068,2]
[385162201,1757676650086,-480.0,0.00015068,2]
[385162202,1757676650096,-511.2,0.00015068,2]
[385162203,1757676650105,-480.0,0.00015068,2]
[385162204,1757676650115,-480.0,0.00015068,2]
[385162205,1757676650124,-480.0,0.00015068,2]
[385162206,1757676650133,-236.19733502,0.00015068,2]
[385162207,1757676650142,-480.0,0.00015068,2]
[385162208,1757676650151,-293.90385868,0.00015068,2]
[385162209,1757676650162,-480.0,0.00015068,2]
[385162210,1757676650171,-539.45,0.00015068,2]
[385162211,1757676650181,-512.57,0.00015068,2]
[385162212,1757676650190,-534.79,0.00015068,2]
[385162213,1757676650199,-559.81,0.00015068,2]
[385162214,1757676650209,-480.0,0.00015068,2]
[385162215,1757676650218,-1064.3,0.00015068,2]
[385162216,1757676650227,-515.74,0.00015068,2]
[385162217,1757676650237,-480.0,0.00015068,2]
[385162218,1757676650247,-480.0,0.00015068,2]
[385162219,1757676650257,-480.0,0.00015068,2]
[385162220,1757676650266,-223.3364405,0.00015068,2]
[385162221,1757676650385,-489.18586202,0.00013972,2]
[385162222,1757676650395,-256.6635595,0.00015068,2]
[385162223,1757676650409,-480.0,0.00015068,2]
[385162224,1757676650419,-480.0,0.00015068,2]
[385162225,1757676650428,-480.0,0.00015068,2]
[385162226,1757676650437,-360.0,0.00015068,2]
[385162228,1757676650447,-766.43,0.00015068,2]
[385162230,1757676650456,-480.0,0.00015068,2]
[385162232,1757676650464,-480.0,0.00015068,2]
[385162234,1757676650473,-480.0,0.00015068,2]
[385162236,1757676650485,-1801.77,0.00015068,2]
[385162238,1757676650495,-480.0,0.00015068,2]
[385162240,1757676650504,-1000.0,0.00015068,2]
[385162242,1757676650514,-1500.0,0.00015068,2]
[385162244,1757676650523,-1500.0,0.00015068,2]
[385162246,1757676650533,-80.03680268,0.00015068,2]
[385162260,1757676650768,-480.0,0.00013698,2]
[385162262,1757676650778,-99.41204265,0.00013698,2]
[385162264,1757676650789,-480.09150695,0.00013698,2]
[385162266,1757676650798,-480.0,0.00013972,2]
[385162268,1757676650809,-480.0,0.00014246,2]
[385162270,1757676650818,-480.0,0.0001452,2]
[385162272,1757676650828,-480.0,0.00014794,2]
[385162274,1757676650838,-426.93959459,0.00015068,2]
[385162276,1757676650848,-102.52515332,0.00015068,2]
[385162279,1757676650857,-720.0,0.00015217,2]
[385162281,1757676650867,-480.0,0.00015342,2]
[385162283,1757676650876,-480.0,0.00015342,2]
[385162285,1757676650886,-380.15007117,0.00015342,2]
[385162287,1757676650896,-480.0,0.00015342,2]
[385162289,1757676650905,-480.0,0.00015342,2]
[385162291,1757676650915,-539.45,0.00015342,2]
[385162293,1757676650925,-512.57,0.00015342,2]
[385162295,1757676650935,-534.79,0.00015342,2]
[385162297,1757676650946,-559.81,0.00015342,2]
[385162299,1757676650956,-1064.3,0.00015342,2]
[385162301,1757676650966,-515.74,0.00015342,2]
[385162303,1757676650975,-480.0,0.00015342,2]
[385162304,1757676650985,-480.0,0.00015342,2]
[385162307,1757676650996,-480.0,0.00015342,2]
[385162309,1757676651006,-480.0,0.00015342,2]
[385162311,1757676651016,-480.0,0.00015342,2]
[385162313,1757676651027,-480.0,0.00015342,2]
[385162315,1757676651036,-766.43,0.00015342,2]
[385162317,1757676651046,-480.0,0.00015342,2]
[385162319,1757676651055,-1801.77,0.00015342,2]
[385162321,1757676651064,-480.0,0.00015342,2]
[385162323,1757676651075,-1000.0,0.00015364,2]
[385162325,1757676651085,-500.0,0.00015382,2]
[385162327,1757676651094,-500.65607241,0.00015382,2]
[385162329,1757676651103,-500.0,0.00015382,2]
[385162331,1757676651113,-167.01465496,0.00015382,2]
[385162333,1757676651123,-1000.0,0.00015536,2]
[385162335,1757676651133,-370.89301855,0.00015536,2]
[385162337,1757676651142,-500.0,0.00015615,2]
[385162339,1757676651152,-480.0,0.00015616,2]
[385162341,1757676651161,-480.0,0.00015616,2]
[385162343,1757676651170,-480.0,0.00015616,2]
[385162345,1757676651180,-539.45,0.00015616,2]
[385162347,1757676651189,-512.57,0.00015616,2]
[385162349,1757676651199,-534.79,0.00015616,2]
[385162350,1757676651208,-559.81,0.00015616,2]
[385162353,1757676651218,-1064.3,0.00015616,2]
[385162354,1757676651227,-515.74,0.00015616,2]
[385162357,1757676651237,-480.0,0.00015616,2]
[385162358,1757676651246,-480.0,0.00015616,2]
[385162361,1757676651256,-270.05,0.00015616,2]
[385162363,1757676651265,-480.0,0.00015616,2]
[385162364,1757676651275,-480.0,0.00015616,2]
[385162366,1757676651284,-766.43,0.00015616,2]
[385162369,1757676651294,-480.0,0.00015616,2]
[385162370,1757676651303,-1801.77,0.00015616,2]
[385162373,1757676651313,-480.0,0.00015616,2]
[385162375,1757676651322,-1508.1500213,0.00015616,2]
[385162376,1757676651331,-500.0,0.00015842,2]
[385162379,1757676651341,-500.0,0.00015842,2]
[385162380,1757676651350,-500.0,0.00015842,2]
[385162382,1757676651361,-500.0,0.00015842,2]
[385162384,1757676651370,-500.0,0.00015842,2]
[385162387,1757676651380,-500.0,0.00015842,2]
[385162389,1757676651389,-428.42855837,0.00015842,2]
[385162391,1757676651399,-500.0,0.00015842,2]
[385162393,1757676651411,-173.77315404,0.00015842,2]
[385162395,1757676651420,-500.0,0.00015842,2]
[385162397,1757676651429,-500.0,0.00015842,2]
[385162399,1757676651439,-500.0,0.00015842,2]
[385162400,1757676651448,-500.0,0.00015842,2]
[385162402,1757676651458,-500.0,0.00015842,2]
[385162404,1757676651467,-500.0,0.00015842,2]
[385162406,1757676651477,-158.11519389,0.00015842,2]
[385162408,1757676651486,-500.0,0.00015842,2]
[385162410,1757676651496,-480.0,0.0001589,2]
[385162412,1757676651505,-480.0,0.0001589,2]
[385162414,1757676651515,-480.0,0.0001589,2]
[385162416,1757676651525,-539.45,0.0001589,2]
[385162418,1757676651534,-512.57,0.0001589,2]
[385162420,1757676651543,-534.79,0.0001589,2]
[385162422,1757676651553,-559.81,0.0001589,2]
[385162424,1757676651562,-1064.3,0.0001589,2]
[385162426,1757676651572,-515.74,0.0001589,2]
[385162428,1757676651582,-406.56,0.0001589,2]
[385162430,1757676651591,-480.0,0.0001589,2]
[385162432,1757676651600,-480.0,0.0001589,2]
[385162434,1757676651610,-766.43,0.0001589,2]
[385162436,1757676651620,-394.03684454,0.0001589,2]
[385162439,1757676651629,-1801.77,0.0001589,2]
[385162440,1757676651638,-480.0,0.0001589,2]
[385162442,1757676651648,-1500.0,0.00015912,2]
[385162444,1757676651657,-1002.94063728,0.0001593,2]
[385162446,1757676651666,-1000.0,0.0001593,2]
[385162448,1757676651676,-160.0,0.00015979,2]
[385162450,1757676651686,-154.13418099,0.00016084,2]
[385162453,1757676651696,-480.0,0.00016164,2]
[385162455,1757676651705,-480.0,0.00016164,2]
[385162457,1757676651715,-480.0,0.00016164,2]
[385162459,1757676651724,-539.45,0.00016164,2]
[385162461,1757676651733,-512.57,0.00016164,2]
[385162463,1757676651742,-534.79,0.00016164,2]
[385162465,1757676651752,-559.81,0.00016164,2]
[385162466,1757676651762,-1064.3,0.00016164,2]
[385162468,1757676651772,-515.74,0.00016164,2]
[385162471,1757676651782,-480.0,0.00016164,2]
[385162473,1757676651792,-480.0,0.00016164,2]
[385162475,1757676651801,-766.43,0.00016164,2]
[385162476,1757676651811,-1801.77,0.00016164,2]
[385162479,1757676651821,-480.0,0.00016164,2]
[385162481,1757676651830,-1000.0,0.0001639,2]
[385162483,1757676651840,-171.00369865,0.0001639,2]
[385162484,1757676651850,-1000.89823398,0.0001639,2]
[385162486,1757676651859,-1000.40016233,0.0001639,2]
[385162488,1757676651869,-663.5652843,0.0001639,2]
[385162490,1757676651878,-1000.96809944,0.0001639,2]
[385162492,1757676651888,-707.08889657,0.0001639,2]
[385162494,1757676651897,-1000.0,0.0001639,2]
[385162496,1757676651907,-1000.0,0.0001639,2]
[385162498,1757676651917,-1000.0,0.0001639,2]
[385162500,1757676651926,-972.33473391,0.0001639,2]
[385162502,1757676651936,-500.99761686,0.0001639,2]
[385162504,1757676651945,-500.0,0.0001639,2]
[385162506,1757676651954,-1000.0,0.0001639,2]
[385162508,1757676651963,-480.0,0.00016438,2]
[385162510,1757676651973,-480.0,0.00016438,2]
[385162512,1757676651982,-480.0,0.00016438,2]
[385162514,1757676651992,-539.45,0.00016438,2]
[385162516,1757676652001,-512.57,0.00016438,2]
[385162518,1757676652010,-534.79,0.00016438,2]
[385162521,1757676652021,-559.81,0.00016438,2]
[385162522,1757676652032,-1064.3,0.00016438,2]
[385162524,1757676652041,-515.74,0.00016438,2]
[385162526,1757676652050,-480.0,0.00016438,2]
[385162529,1757676652060,-480.0,0.00016438,2]
[385162531,1757676652070,-766.43,0.00016438,2]
[385162532,1757676652079,-1801.77,0.00016438,2]
[385162534,1757676652089,-480.0,0.00016438,2]
[385162536,1757676652098,-2000.0,0.0001646,2]
[385162538,1757676652107,-291.09990987,0.00016478,2]
[385162540,1757676652117,-260.0,0.00016527,2]
[385162542,1757676652127,-480.0,0.00016712,2]
[385162544,1757676652137,-480.0,0.00016712,2]
[385162547,1757676652146,-480.0,0.00016712,2]
[385162549,1757676652156,-539.45,0.00016712,2]
[385162551,1757676652167,-512.57,0.00016712,2]
[385162553,1757676652177,-534.79,0.00016712,2]
[385162554,1757676652186,-559.81,0.00016712,2]
[385162557,1757676652196,-1064.3,0.00016712,2]
[385162559,1757676652205,-515.74,0.00016712,2]
[385162561,1757676652214,-480.0,0.00016712,2]
[385162563,1757676652224,-480.0,0.00016712,2]
[385162565,1757676652233,-766.43,0.00016712,2]
[385162567,1757676652243,-1801.77,0.00016712,2]
[385162569,1757676652252,-480.0,0.00016712,2]
[385162571,1757676652261,-864.0,0.00016738,2]
[385162573,1757676652271,-1500.0,0.00016938,2]
[385162575,1757676652282,-1503.37712072,0.00016938,2]
[385162577,1757676652291,-1500.0,0.00016938,2]
[385162579,1757676652301,-1501.71423603,0.00016938,2]
[385162581,1757676652310,-480.0,0.00016986,2]
[385162583,1757676652320,-480.0,0.00016986,2]
[385162585,1757676652330,-480.0,0.00016986,2]
[385162587,1757676652340,-539.45,0.00016986,2]
[385162589,1757676652350,-512.57,0.00016986,2]
[385162591,1757676652359,-534.79,0.00016986,2]
[385162593,1757676652369,-559.81,0.00016986,2]
[385162595,1757676652378,-1064.3,0.00016986,2]
[385162597,1757676652388,-515.74,0.00016986,2]
[385162599,1757676652397,-480.0,0.00016986,2]
[385162601,1757676652410,-480.0,0.00016986,2]
[385162603,1757676652419,-766.43,0.00016986,2]
[385162605,1757676652429,-1801.77,0.00016986,2]
[385162607,1757676652438,-480.0,0.00016986,2]
[385162609,1757676652447,-500.0,0.00016993,2]
[385162611,1757676652457,-156.11404464,0.00016993,2]
[385162613,1757676652466,-500.0,0.00016993,2]
[385162615,1757676652476,-500.0,0.00016993,2]
[385162617,1757676652489,-500.0,0.00016993,2]
[385162619,1757676652499,-500.0,0.00016993,2]
[385162621,1757676652509,-500.0,0.00016993,2]
[385162623,1757676652518,-500.0,0.00016993,2]
[385162625,1757676652528,-500.0,0.00016993,2]
[385162627,1757676652537,-500.0,0.00016993,2]
[385162629,1757676652546,-500.0,0.00016993,2]
[385162631,1757676652555,-500.0,0.00016993,2]
[385162633,1757676652565,-236.50063471,0.00016993,2]
[385162636,1757676652576,-567.77834974,0.00016993,2]
[385162638,1757676652585,-500.0,0.00016993,2]
[385162639,1757676652594,-500.0,0.00016993,2]
[385162642,1757676652604,-500.0,0.00016993,2]
[385162643,1757676652613,-500.0,0.00016993,2]
[385162646,1757676652623,-500.0,0.00016993,2]
[385162648,1757676652633,-1099.96019675,0.00017008,2]
[385162650,1757676652642,-360.0,0.00017074,2]
[385162652,1757676652651,-500.0,0.00017253,2]
[385162654,1757676652660,-158.11517252,0.00017253,2]
[385162656,1757676652670,-157.11446883,0.00017253,2]
[385162658,1757676652680,-158.14963326,0.00017253,2]
[385162660,1757676652689,-397.88056383,0.00017253,2]
[385162662,1757676652698,-500.0,0.00017253,2]
[385162664,1757676652707,-160.11743075,0.00017253,2]
[385162666,1757676652716,-500.0,0.00017253,2]
[385162668,1757676652726,-500.0,0.00017253,2]
[385162670,1757676652735,-500.0,0.00017253,2]
[385162672,1757676652745,-500.0,0.00017253,2]
[385162674,1757676652754,-500.0,0.00017253,2]
[385162676,1757676652763,-480.0,0.0001726,2]
[385162678,1757676652772,-480.0,0.0001726,2]
[385162680,1757676652781,-480.0,0.0001726,2]
[385162682,1757676652791,-539.45,0.0001726,2]
[385162684,1757676652800,-512.57,0.0001726,2]
[385162686,1757676652809,-534.79,0.0001726,2]
[385162688,1757676652818,-559.81,0.0001726,2]
[385162690,1757676652828,-1064.3,0.0001726,2]
[385162692,1757676652837,-515.74,0.0001726,2]
[385162694,1757676652846,-480.0,0.0001726,2]
[385162696,1757676652855,-480.0,0.0001726,2]
[385162698,1757676652865,-766.43,0.0001726,2]
[385162700,1757676652875,-1801.77,0.0001726,2]
[385162702,1757676652884,-480.0,0.0001726,2]
[385162704,1757676652893,-1041.30234502,0.00017486,2]
[385162706,1757676652903,-1914.90376157,0.00017486,2]
[385162708,1757676652912,-480.0,0.00017534,2]
[385162710,1757676652921,-480.0,0.00017534,2]
[385162712,1757676652930,-480.0,0.00017534,2]
[385162714,1757676652939,-539.45,0.00017534,2]
[385162716,1757676652948,-512.57,0.00017534,2]
[385162718,1757676652957,-534.79,0.00017534,2]
[385162720,1757676652966,-559.81,0.00017534,2]
[385162722,1757676652977,-1064.3,0.00017534,2]
[385162724,1757676652987,-515.74,0.00017534,2]
[385162726,1757676652996,-480.0,0.00017534,2]
[385162728,1757676653005,-480.0,0.00017534,2]
[385162730,1757676653015,-766.43,0.00017534,2]
[385162732,1757676653024,-1801.77,0.00017534,2]
[385162734,1757676653034,-472.13,0.00017534,2]
[385162736,1757676653043,-1000.0,0.00017541,2]
[385162738,1757676653052,-1000.54541879,0.00017541,2]
[385162740,1757676653061,-1002.42639181,0.00017541,2]
[385162742,1757676653070,-1001.7355721,0.00017541,2]
[385162744,1757676653080,-1000.87678344,0.00017541,2]
[385162746,1757676653089,-1001.21094924,0.00017541,2]
[385162748,1757676653098,-1000.79995328,0.00017541,2]
[385162750,1757676653107,-1000.93384071,0.00017541,2]
[385162752,1757676653116,-1000.79587763,0.00017541,2]
[385162754,1757676653125,-1000.0,0.00017541,2]
[385162756,1757676653134,-1002.28732597,0.00017541,2]
[385162758,1757676653143,-1001.26665477,0.00017541,2]
[385162760,1757676653152,-1000.80814639,0.00017541,2]
[385162762,1757676653163,-1000.0,0.00017541,2]
[385162764,1757676653172,-1000.77666134,0.00017541,2]
[385162776,1757676653267,-1000.8445417,0.00017541,2]
[385162778,1757676653289,-300.0,0.00017622,2]
[385162781,1757676653299,-500.0,0.0001772,2]
[385162783,1757676653308,-500.0,0.0001772,2]
[385162785,1757676653318,-500.0,0.0001772,2]
[385162787,1757676653327,-589.15796454,0.0001772,2]
[385162789,1757676653338,-500.0,0.0001772,2]
[385162791,1757676653347,-500.0,0.000178,2]
[385162793,1757676653361,-500.0,0.000178,2]
[385162795,1757676653375,-1000.0,0.00017801,2]
[385162797,1757676653384,-1000.65277306,0.00017801,2]
[385162799,1757676653394,-1000.95622667,0.00017801,2]